bitfinex/quotes_SOLUSD_20250622
["timestamp","ask_amount","ask_price","bid_price","bid_amount"]
[1750586921885,165.54964886,132.96,132.9,26.33559066]
[1750586922083,18.64964886,132.94,132.9,7.52445447]
[1750586923187,18.64964886,132.94,132.88,26.3394332]
[1750586923392,18.64964886,132.92,132.88,7.52558699]
[1750586924381,155.16,132.93,132.88,7.52558699]
[1750586924990,155.16,132.93,132.88,26.33955447]
[1750586925198,155.16,132.93,132.86,7.52671985]
[1750586925396,146.9,132.93,132.89,26.0]
[1750586925698,18.64964886,132.97,132.89,26.0]
[1750586925995,180.26,132.96,132.89,26.0]
[1750586926200,18.64964886,132.95,132.89,26.0]
[1750586927405,18.64964886,132.95,132.9,26.33559066]
[1750586928077,18.64964886,132.93,132.85,7.52728641]
[1750586928280,146.9,132.92,132.85,7.52728641]
[1750586928479,165.54964886,132.91,132.86,18.81671833]
[1750586929196,198.88964886,132.91,132.86,18.81671833]
[1750586929897,146.9,132.91,132.88,1.0]
[1750586931396,146.9,132.91,132.89,7.52502069]
[1750586931902,18.64964886,132.9,132.88,8.52535585]
[1750586932293,180.24,132.89,132.88,1.0]
[1750586932473,84.01494886,132.89,132.88,1.0]
[1750586932795,85.52154886,132.89,132.88,1.0]
[1750586933388,93.04656955,132.89,132.88,1.0]
[1750586933586,85.52154886,132.89,132.88,1.0]
[1750586933784,50.67494886,132.89,132.88,1.0]
[1750586934107,9.03202951,132.91,132.88,8.52558699]
[1750586936867,18.64964886,132.9,132.88,8.52558699]
[1750586936975,18.64964886,132.9,132.88,1.0]
[1750586937577,180.22,132.89,132.88,1.0]
[1750586938299,180.22,132.89,132.88,8.52558699]
[1750586938497,198.86964886,132.89,132.88,8.52558699]
[1750586938804,146.9,132.89,132.88,1.0]
[1750586940996,42.33202951,132.91,132.88,8.52558699]
[1750586941190,42.33202951,132.91,132.88,27.33955447]
[1750586942903,9.03202951,132.91,132.88,27.33955447]
[1750586943121,27.68167837,132.91,132.88,27.33955447]
[1750586943320,9.03202951,132.91,132.88,27.33955447]
[1750586943522,155.93202951,132.91,132.88,27.33955447]
[1750586944807,9.03202951,132.91,132.9,26.0]
[1750586945020,9.03202951,132.91,132.9,33.52445447]
[1750586947521,146.9,132.95,132.9,52.33559066]
[1750586948022,8.18,132.97,132.9,89.95786304]
[1750586948195,33.26,133.01,132.94,26.0]
[1750586948528,51.90964886,133.01,132.94,26.0]
[1750586949208,18.64964886,133.01,132.95,26.32568634]
[1750586949402,223.59068479,133.02,132.95,26.32568634]
[1750586949722,190.33068479,133.02,132.95,26.32568634]
[1750586950520,190.33068479,133.02,132.95,63.93380969]
[1750586951533,18.64964886,133.01,132.95,26.32568634]
[1750586951881,51.88964886,133.01,132.95,26.32568634]
[1750586952004,51.88964886,133.01,132.95,7.52162467]
[1750586952311,146.9,133.0,132.95,26.32568634]
[1750586953302,146.9,133.0,132.95,89.93380969]
[1750586953512,17.43068479,133.02,132.96,7.8097]
[1750586954922,9.25068479,133.02,132.96,7.8097]
[1750586955525,9.25068479,133.02,132.97,26.3217267]
[1750586956533,18.64964886,133.01,132.97,26.3217267]
[1750586956857,198.76964886,133.01,132.97,7.52049334]
[1750586957047,146.9,133.0,132.97,7.52049334]
[1750586957459,146.9,133.0,132.95,26.32558548]
[1750586958831,165.54964886,132.99,132.95,26.32558548]
[1750586959464,146.9,132.99,132.95,26.32558548]
[1750586961331,146.9,132.99,132.93,27.651]
[1750586961332,165.54964886,132.98,132.93,7.52275633]
[1750586961535,165.54964886,132.98,132.9,37.62227238]
[1750586961536,33.18,132.97,132.9,63.95786304]
[1750586961829,33.18,132.97,132.9,89.95786304]
[1750586962030,165.54964886,132.98,132.9,89.95786304]
[1750586964330,33.18,132.97,132.9,89.95786304]
[1750586966158,165.54964886,132.98,132.9,89.95786304]
[1750586966366,146.9,132.98,132.9,89.95786304]
[1750586968048,146.9,132.98,132.93,26.0]
[1750586968355,146.9,132.98,132.94,26.32766661]
[1750586974067,146.9,132.98,132.94,32.67576661]
[1750586977648,146.9,132.98,132.94,26.32766661]
[1750586978658,18.64964886,132.97,132.94,26.32766661]
[1750586978983,18.64964886,132.97,132.94,7.52219046]
[1750586979566,18.64964886,132.97,132.93,18.80570066]
[1750586984451,146.9,132.98,132.93,18.80570066]
[1750586985552,8.18,133.01,132.96,26.0]
[1750586987583,8.18,133.01,132.97,26.3217267]
[1750586988671,9.25068479,133.02,132.97,32.9305267]
[1750586989666,9.25068479,133.02,132.97,70.53299342]
[1750586990991,59.76964886,133.06,132.97,70.53299342]
[1750586991172,26.72964886,133.06,132.97,70.53299342]
[1750586991489,26.72964886,133.06,132.97,108.13546014]
[1750586992380,18.64964886,133.05,132.97,108.13546014]
[1750586992682,8.08,133.06,133.0,26.0]
[1750586992885,8.08,133.06,133.01,1.5953]
[1750586993087,146.9,133.07,133.01,1.5953]
[1750586993308,146.9,133.07,133.03,26.0]
[1750586993490,146.9,133.1,133.03,26.0]
[1750586993685,18.64964886,133.09,133.03,26.0]
[1750586993901,18.64964886,133.09,133.04,26.30787733]
[1750586996606,146.9,133.1,133.04,26.30787733]
[1750586996791,18.64964886,133.1,133.04,26.30787733]
[1750586997183,17.24635514,133.11,133.04,63.89055923]
[1750586997386,8.0,133.16,133.07,26.0]
[1750586997611,26.0,133.15,133.07,26.0]
[1750586997787,18.64964886,133.14,133.07,26.0]
[1750586997989,33.0,133.13,133.08,7.51427712]
[1750586998400,18.64964886,133.12,133.08,7.51427712]
[1750587000004,18.64964886,133.15,133.08,26.29996993]
[1750587000319,18.64964886,133.15,133.08,63.87135556]
[1750587001503,18.64964886,133.15,133.08,26.29996993]
[1750587003611,26.16008312,133.15,133.07,33.51460635]
[1750587003928,18.64964886,133.08,133.03,6.4808]
[1750587004216,51.60964886,133.08,133.03,13.99774461]
[1750587004444,51.60964886,133.08,133.03,6.4808]
[1750587004594,59.12395055,133.08,133.03,6.4808]
[1750587004800,59.12395055,133.08,132.99,6.6651]
[1750587005001,59.12395055,133.08,132.98,1.6535]
[1750587005002,18.64964886,133.04,132.98,1.6535]
[1750587005329,59.58964886,133.04,132.96,7.52099398]
[1750587005706,59.58964886,133.04,132.95,8.3186]
[1750587005707,18.64964886,133.0,132.95,8.3186]
[1750587006015,51.60964886,133.0,132.92,1.6535]
[1750587006221,7.51936235,132.99,132.92,9.17637709]
[1750587007928,18.64964886,132.96,132.92,1.6535]
[1750587008109,18.64964886,132.97,132.92,1.6535]
[1750587009731,18.64964886,132.97,132.91,6.6651]
[1750587010118,40.48105896,132.96,132.91,6.6651]
[1750587010318,32.96,132.96,132.91,14.18898691]
[1750587011021,18.64964886,132.95,132.91,14.18898691]
[1750587011222,18.64964886,132.97,132.91,14.18898691]
[1750587011629,18.64964886,132.97,132.91,32.99870777]
[1750587011959,18.64964886,132.97,132.91,14.18898691]
[1750587012107,26.17039895,132.97,132.91,14.18898691]
[1750587012428,26.17039895,132.97,132.91,6.6651]
[1750587013012,26.17039895,132.97,132.91,14.18898641]
[1750587013425,18.64964886,132.97,132.91,14.18898641]
[1750587013630,7.98,132.98,132.91,40.18898641]
[1750587013828,7.98,132.98,132.91,58.99870727]
[1750587014838,7.98,132.98,132.91,96.61814899]
[1750587015044,18.64964886,133.0,132.95,1.5604]
[1750587015530,146.9,133.01,132.95,1.5604]
[1750587015705,8.0,133.03,132.99,26.0]
[1750587015912,48.76,133.06,132.99,26.0]
[1750587016445,18.64964886,133.05,132.99,26.0]
[1750587017011,18.64964886,133.05,132.96,6.5761]
[1750587017012,18.64964886,133.05,132.97,52.3217267]
[1750587021323,18.64964886,133.06,132.97,52.3217267]
[1750587024441,18.64964886,133.02,132.97,26.3217267]
[1750587025662,18.64964886,133.02,132.97,7.52049334]
[1750587026035,18.64964886,133.0,132.97,7.52049334]
[1750587026627,18.64964886,133.0,132.96,14.09695706]
[1750587026825,32.9,132.99,132.96,14.09695706]
[1750587027752,18.64964886,132.98,132.95,9.08183796]
[1750587028355,165.54964886,132.98,132.93,6.5776]
[1750587028560,165.54964886,132.98,132.92,1.5141]
[1750587028561,18.64964886,132.96,132.92,1.5141]
[1750587028846,18.64964886,132.96,132.92,9.03730261]
[1750587029255,18.64964886,132.96,132.91,7.52372231]
[1750587029556,18.64964886,132.94,132.91,7.52372231]
[1750587029856,18.64964886,132.94,132.88,1.6448]
[1750587030057,146.9,132.93,132.88,1.6448]
[1750587030426,146.9,132.93,132.87,7.52615338]
[1750587031448,18.64964886,132.92,132.87,7.52615338]
[1750587031644,18.64964886,132.9,132.87,7.52615338]
[1750587031852,165.54964886,132.9,132.87,7.52615338]
[1750587033039,146.9,132.9,132.87,26.34153683]
[1750587033964,146.9,132.9,132.87,7.52615338]
[1750587034164,18.64964886,132.89,132.87,7.52615338]
[1750587034384,18.64964886,132.89,132.86,7.5266326]
[1750587035142,18.64964886,132.89,132.84,7.52785305]
[1750587036171,18.64964886,132.89,132.84,26.34748569]
[1750587037455,146.9,132.88,132.84,26.34748569]
[1750587037663,179.76,132.88,132.84,7.52785305]
[1750587038470,179.76,132.88,132.83,6.173]
[1750587038471,18.64964886,132.87,132.83,7.52819729]
[1750587038772,165.54964886,132.87,132.83,7.52819729]
[1750587039473,165.54964886,132.87,132.81,26.35343723]
[1750587040964,32.86,132.86,132.81,26.35343723]
[1750587041479,146.9,132.87,132.81,26.35343723]
[1750587042007,18.64964886,132.86,132.81,26.35343723]
[1750587042400,18.64964886,132.86,132.81,7.52955349]
[1750587042554,18.64964886,132.84,132.81,7.52955349]
[1750587043487,32.86,132.85,132.8,26.35542168]
[1750587044350,32.86,132.87,132.8,64.00602408]
[1750587044572,18.64964886,132.91,132.83,26.0]
[1750587045574,18.64964886,132.91,132.84,63.98675097]
[1750587046459,146.9,132.92,132.84,63.98675097]
[1750587046669,146.9,132.92,132.87,26.0]
[1750587046872,18.64964886,132.92,132.87,26.0]
[1750587047483,18.64964886,132.92,132.88,26.33955447]
[1750587048786,32.84,132.93,132.88,63.96748944]
[1750587049180,26.56964886,132.94,132.88,63.96748944]
[1750587051160,7.92,132.94,132.88,63.96748944]
[1750587052073,7.92,132.94,132.88,26.33955447]
[1750587052459,18.64964886,132.92,132.88,26.33955447]
[1750587052976,18.64964886,132.92,132.88,7.52558699]
[1750587053571,7.92,132.94,132.88,18.81396748]
[1750587054186,18.64964886,132.92,132.88,18.81396748]
[1750587055366,146.9,132.93,132.88,18.81396748]
[1750587055575,7.92,132.94,132.91,26.0]
[1750587055786,18.64964886,132.97,132.91,26.0]
[1750587055973,18.64964886,132.97,132.91,27.5003]
[1750587056170,18.64964886,132.97,132.88,65.46778944]
[1750587056495,52.17030684,132.97,132.88,53.83985447]
[1750587056667,18.64964886,132.95,132.88,53.83985447]
[1750587056869,32.8,132.94,132.88,53.83985447]
[1750587057274,26.48964886,132.93,132.88,26.33955447]
[1750587057602,26.48964886,132.93,132.88,18.81396748]
[1750587060966,173.38964886,132.93,132.88,18.81396748]
[1750587063000,18.64964886,132.91,132.87,7.52615338]
[1750587063307,18.64964886,132.89,132.87,7.52615338]
[1750587063613,18.64964886,132.89,132.86,18.81663539]
[1750587063614,18.64964886,132.89,132.86,7.52671985]
[1750587064175,179.68,132.88,132.86,7.52671985]
[1750587064925,165.54964886,132.87,132.82,26.35124857]
[1750587065078,173.38964886,132.87,132.82,26.35124857]
[1750587068914,18.64964886,132.85,132.82,26.35124857]
[1750587072020,179.66,132.86,132.82,26.35124857]
[1750587072199,146.9,132.86,132.82,26.35124857]
[1750587073511,7.84,132.87,132.82,63.99618156]
[1750587075197,146.9,132.9,132.85,26.0]
[1750587075402,7.84,132.92,132.86,7.7243]
[1750587075906,146.9,132.94,132.89,26.0]
[1750587076213,7.84,132.97,132.89,26.0]
[1750587076518,18.64964886,132.96,132.89,26.0]
[1750587076812,18.64964886,132.96,132.9,63.95786304]
[1750587077387,7.84,132.97,132.93,26.0]
[1750587078816,7.84,132.97,132.94,26.32766661]
[1750587079602,18.64964886,132.96,132.94,7.52219046]
[1750587080115,18.64964886,132.96,132.87,26.34153683]
[1750587080414,18.64964886,132.96,132.88,26.0]
[1750587080814,18.64964886,132.96,132.88,52.33955447]
[1750587081612,18.64964886,132.96,132.88,89.96554743]
[1750587082418,146.9,132.95,132.88,89.96554743]
[1750587083712,18.64964886,132.93,132.88,89.96554743]
[1750587090719,165.54964886,132.93,132.88,89.96554743]
[1750587094019,18.64964886,132.91,132.88,63.96554743]
[1750587094517,18.64964886,132.91,132.88,56.43996044]
[1750587095204,18.64964886,132.91,132.88,18.81396748]
[1750587095606,18.64964886,132.89,132.87,7.52615338]
[1750587096131,18.64964886,132.87,132.85,7.52728641]
[1750587096611,18.64964886,132.85,132.81,7.52955349]
[1750587096810,18.64964886,132.83,132.76,26.36336245]
[1750587097034,18.64964886,132.81,132.76,26.36336245]
[1750587097332,57.84764886,132.81,132.76,26.36336245]
[1750587097510,57.84764886,132.81,132.76,7.53238927]
[1750587097711,59.45774886,132.81,132.76,7.53238927]
[1750587097921,18.64964886,132.79,132.76,7.53238927]
[1750587098121,32.64,132.78,132.74,7.53352418]
[1750587098436,40.42,132.78,132.74,7.53352418]
[1750587098641,165.54964886,132.77,132.7,26.37528258]
[1750587098805,165.54964886,132.77,132.7,64.05425771]
[1750587099220,165.54964886,132.77,132.73,26.0]
[1750587099428,146.9,132.77,132.73,26.0]
[1750587099633,7.78,132.78,132.73,26.0]
[1750587099937,18.3889308,132.81,132.77,26.0]
[1750587099938,11.8309308,132.81,132.77,26.0]
[1750587100517,11.8309308,132.81,132.78,26.35939146]
[1750587101823,11.8309308,132.81,132.8,26.0]
[1750587102514,11.8309308,132.81,132.8,33.53012048]
[1750587104247,18.64964886,132.87,132.8,90.00602408]
[1750587104906,18.64964886,132.87,132.8,52.35542168]
[1750587105209,18.64964886,132.87,132.8,26.35542168]
[1750587107110,146.9,132.86,132.8,26.35542168]
[1750587107342,18.64964886,132.85,132.8,26.35542168]
[1750587108619,146.9,132.86,132.8,26.35542168]
[1750587109557,18.64964886,132.85,132.8,26.35542168]
[1750587110625,146.9,132.86,132.83,26.0]
[1750587111206,146.9,132.86,132.8,64.00602408]
[1750587111408,146.9,132.86,132.81,26.0]
[1750587112846,146.9,132.86,132.82,26.35145308]
[1750587114053,18.64964886,132.85,132.82,26.35145308]
[1750587114559,51.24964886,132.85,132.78,18.82807221]
[1750587115042,51.24964886,132.85,132.78,52.35932691]
[1750587115354,51.24964886,132.85,132.78,90.01560044]
[1750587115724,18.64964886,132.85,132.78,90.01560044]
[1750587117916,18.64964886,132.85,132.78,52.35932691]
[1750587122657,18.64964886,132.85,132.78,90.01560044]
[1750587123255,148.44,132.9,132.82,26.35145308]
[1750587123468,18.64964886,132.89,132.82,26.35145308]
[1750587124131,44.64964886,132.89,132.82,26.35145308]
[1750587125259,18.64964886,132.87,132.82,26.35145308]
[1750587125442,146.9,132.86,132.82,26.35145308]
[1750587127240,198.08964886,132.85,132.82,7.52898659]
[1750587127456,205.78964886,132.85,132.79,44.82539912]
[1750587127755,205.78964886,132.85,132.79,18.82539912]
[1750587129467,205.78964886,132.85,132.79,26.35608667]
[1750587130454,18.64964886,132.83,132.79,7.53068755]
[1750587130663,18.64964886,132.81,132.75,26.36534839]
[1750587130962,32.54,132.8,132.75,26.36534839]
[1750587131168,18.64964886,132.81,132.75,52.36534839]
[1750587131545,18.64964886,132.81,132.75,90.03013181]
[1750587131743,18.64964886,132.81,132.75,52.36534839]
[1750587132366,18.64964886,132.81,132.75,26.36534839]
[1750587132669,18.64964886,132.79,132.72,7.53465943]
[1750587132965,18.64964886,132.77,132.72,7.53465943]
[1750587133166,46.24544886,132.77,132.72,7.53465943]
[1750587133867,53.77740771,132.77,132.69,7.53636295]
[1750587134066,18.64964886,132.73,132.65,18.84652227]
[1750587134373,40.22,132.72,132.65,44.84652227]
[1750587135237,40.22,132.72,132.65,18.84652227]
[1750587135661,40.22,132.72,132.65,52.38515777]
[1750587136376,165.54964886,132.71,132.65,26.38515777]
[1750587136875,18.64964886,132.69,132.65,7.5386355]
[1750587137171,32.52,132.68,132.65,7.5386355]
[1750587137877,32.52,132.68,132.6,6.2349]
[1750587137878,165.54964886,132.67,132.62,7.54034082]
[1750587138080,18.64964886,132.65,132.62,26.39119287]
[1750587138246,32.52,132.64,132.62,26.39119287]
[1750587138673,7.7,132.66,132.62,26.39119287]
[1750587138674,18.64964886,132.66,132.62,26.39119287]
[1750587142256,187.12,132.67,132.62,26.39119287]
[1750587142573,18.64964886,132.7,132.62,53.95469287]
[1750587143074,146.9,132.69,132.62,53.95469287]
[1750587143271,18.64964886,132.67,132.62,52.39119287]
[1750587145183,18.64964886,132.67,132.62,26.39119287]
[1750587146878,32.52,132.68,132.62,64.09289698]
[1750587148096,18.64964886,132.67,132.62,64.09289698]
[1750587148592,18.64964886,132.67,132.62,26.39119287]
[1750587149684,18.64964886,132.67,132.62,7.54034082]
[1750587149893,18.64964886,132.65,132.62,7.54034082]
[1750587150100,18.64964886,132.63,132.62,7.54034082]
[1750587150395,146.9,132.66,132.62,7.54034082]
[1750587150396,146.9,132.66,132.62,26.39119287]
[1750587150599,75.46764351,132.7,132.62,26.39119287]
[1750587150774,49.46764351,132.7,132.62,26.39119287]
[1750587151089,18.64964886,132.69,132.62,26.39119287]
[1750587151676,18.64964886,132.69,132.62,64.09289698]
[1750587152000,49.46764351,132.7,132.62,64.09289698]
[1750587152466,18.64964886,132.69,132.62,64.09289698]
[1750587153916,9.30764351,132.7,132.66,27.5278]
[1750587154118,41.80764351,132.7,132.66,27.5278]
[1750587154473,41.80764351,132.7,132.67,26.38124669]
[1750587155674,9.30764351,132.7,132.67,26.38124669]
[1750587165982,9.30764351,132.7,132.69,26.0]
[1750587167614,9.30764351,132.7,132.69,33.53636295]
[1750587169585,146.9,132.76,132.69,96.39248507]
[1750587170611,51.08964886,132.75,132.69,96.39248507]
[1750587170799,51.08964886,132.75,132.69,90.05908507]
[1750587172226,146.9,132.74,132.69,26.37727032]
[1750587172524,18.64964886,132.72,132.69,26.37727032]
[1750587173321,32.44,132.71,132.69,26.37727032]
[1750587173621,18.64964886,132.7,132.69,7.53636295]
[1750587174125,18.64964886,132.7,132.67,26.38095921]
[1750587175504,32.44,132.71,132.67,26.38095921]
[1750587176231,18.64964886,132.72,132.67,64.06845449]
[1750587176593,179.32,132.73,132.67,64.06845449]
[1750587177627,146.9,132.73,132.7,26.0]
[1750587179420,146.9,132.73,132.68,26.0]
[1750587179421,18.64964886,132.72,132.68,26.0]
[1750587179730,18.64964886,132.72,132.69,26.37727032]
[1750587179927,7.64,132.77,132.69,64.05908507]
[1750587179928,7.58,132.77,132.69,64.05908507]
[1750587180227,18.64964886,132.76,132.69,64.05908507]
[1750587181415,18.64964886,132.74,132.69,64.05908507]
[1750587181930,44.64964886,132.74,132.69,7.53636295]
[1750587182300,44.64964886,132.74,132.66,1.5278]
[1750587182500,44.64964886,132.74,132.67,7.53749905]
[1750587182501,165.54964886,132.74,132.67,7.53749905]
[1750587182706,165.54964886,132.74,132.67,33.53749905]
[1750587182926,51.04964886,132.74,132.67,52.38124669]
[1750587183318,32.4,132.74,132.7,26.0]
[1750587183631,51.04964886,132.76,132.7,26.0]
[1750587184018,51.04964886,132.76,132.71,26.37329514]
[1750587185224,197.94964886,132.76,132.71,26.37329514]
[1750587188329,18.64964886,132.74,132.71,26.37329514]
[1750587189236,179.28,132.75,132.71,26.37329514]
[1750587189832,7.58,132.77,132.71,26.37329514]
[1750587190035,9.19679017,132.81,132.75,26.0]
[1750587190333,9.19679017,132.81,132.76,26.36336245]
[1750587191340,18.64964886,132.8,132.76,26.36336245]
[1750587193035,9.19679017,132.81,132.76,64.02530881]
[1750587194235,18.64964886,132.8,132.76,26.36336245]
[1750587194437,51.00964886,132.8,132.76,26.36336245]
[1750587196726,51.00964886,132.8,132.72,7.8239]
[1750587196934,18.64964886,132.78,132.73,7.53409176]
[1750587197240,18.64964886,132.76,132.73,7.53409176]
[1750587197947,18.64964886,132.76,132.7,26.37518497]
[1750587202521,7.58,132.78,132.72,26.0]
[1750587202726,7.58,132.78,132.73,26.0]
[1750587204945,7.58,132.78,132.74,26.36733463]
[1750587206533,7.58,132.78,132.75,7.6761]
[1750587207048,146.9,132.8,132.76,26.36336245]
[1750587210848,18.64964886,132.79,132.76,26.36336245]
[1750587211643,50.94964886,132.79,132.76,7.53238927]
[1750587211860,18.64964886,132.77,132.76,7.53238927]
[1750587213449,18.64964886,132.77,132.74,26.36726682]
[1750587214465,18.64964886,132.75,132.74,7.53352418]
[1750587214969,50.94964886,132.75,132.74,7.53352418]
[1750587215163,50.94964886,132.75,132.73,7.53384135]
[1750587215347,50.94964886,132.75,132.7,26.37523328]
[1750587215750,18.64964886,132.73,132.7,7.53579502]
[1750587216077,146.9,132.74,132.66,7.53806723]
[1750587216078,18.64964886,132.71,132.66,7.53806723]
[1750587216281,32.28,132.7,132.66,7.53806723]
[1750587216485,18.64964886,132.69,132.66,7.53806723]
[1750587217484,154.42,132.71,132.66,18.84516809]
[1750587219566,154.42,132.71,132.66,26.38323532]
[1750587220264,154.42,132.71,132.66,64.07357151]
[1750587221958,154.42,132.71,132.69,26.0]
[1750587222960,146.9,132.75,132.69,27.6582]
[1750587223150,32.28,132.77,132.73,26.0]
[1750587223578,18.64964886,132.76,132.72,26.37130801]
[1750587223777,18.64964886,132.74,132.72,26.37130801]
[1750587226089,18.64964886,132.74,132.69,27.6582]
[1750587226090,18.64964886,132.74,132.7,52.37528258]
[1750587227594,32.28,132.75,132.7,90.05425771]
[1750587227765,146.9,132.77,132.7,90.05425771]
[1750587227766,179.16,132.77,132.7,90.05425771]
[1750587229279,146.9,132.77,132.7,90.05425771]
[1750587229476,179.16,132.77,132.7,90.05425771]
[1750587230385,18.64964886,132.76,132.7,90.05425771]
[1750587230783,32.26,132.75,132.7,90.05425771]
[1750587231296,165.54964886,132.74,132.7,26.37528258]
[1750587231896,146.9,132.74,132.7,26.37528258]
[1750587232265,146.9,132.74,132.69,37.67968434]
[1750587235588,76.88964886,132.77,132.69,37.67968434]
[1750587241790,18.64964886,132.76,132.68,26.37925836]
[1750587242001,18.64964886,132.74,132.68,26.37925836]
[1750587242186,18.64964886,132.72,132.68,64.06391316]
[1750587248981,146.9,132.73,132.68,64.06391316]
[1750587249682,18.64964886,132.76,132.71,26.0]
[1750587249980,146.9,132.77,132.72,1.5512]
[1750587250286,146.9,132.8,132.76,26.0]
[1750587250478,9.19679017,132.81,132.77,26.3613768]
[1750587252009,9.19679017,132.81,132.78,1.5512]
[1750587252704,9.19679017,132.81,132.79,7.53068755]
[1750587253591,7.48,132.84,132.79,64.01084417]
[1750587255207,162.1511,132.89,132.79,96.18174417]
[1750587255410,18.64964886,132.88,132.79,96.18174417]
[1750587255708,154.36,132.89,132.79,96.18174417]
[1750587256009,18.64964886,132.88,132.79,133.83518192]
[1750587256388,18.64964886,132.86,132.79,107.83518192]
[1750587257809,18.64964886,132.84,132.79,26.35740642]
[1750587258001,18.64964886,132.82,132.79,26.35740642]
[1750587258507,18.64964886,132.82,132.79,7.53068755]
[1750587259106,39.62,132.83,132.79,7.53068755]
[1750587259311,39.62,132.83,132.79,26.35740642]
[1750587259611,39.62,132.83,132.76,26.36336245]
[1750587259778,18.64964886,132.82,132.76,26.36336245]
[1750587260204,18.64964886,132.82,132.76,64.02530881]
[1750587260982,18.64964886,132.82,132.76,26.36336245]
[1750587261685,18.64964886,132.82,132.76,18.83097318]
[1750587264301,146.9,132.81,132.76,18.83097318]
[1750587264493,18.64964886,132.8,132.76,18.83097318]
[1750587266312,146.9,132.81,132.76,18.83097318]
[1750587270117,146.9,132.81,132.76,64.02530881]
[1750587271120,7.46,132.83,132.78,26.0]
[1750587271294,7.46,132.83,132.79,1.62]
[1750587271495,146.9,132.85,132.8,26.0]
[1750587272116,146.9,132.85,132.81,26.35343723]
[1750587272308,7.42,132.88,132.84,26.0]
[1750587272506,10.42042926,132.92,132.85,26.0]
[1750587272720,10.42042926,132.92,132.86,1.62]
[1750587273023,7.42,132.93,132.86,1.62]
[1750587274123,7.42,132.93,132.87,26.34153683]
[1750587274493,18.64964886,132.92,132.87,26.34153683]
[1750587274803,18.64964886,132.9,132.87,7.52615338]
[1750587275819,18.64964886,132.9,132.83,26.34946924]
[1750587276208,18.64964886,132.9,132.83,63.99156816]
[1750587279907,146.9,132.89,132.83,63.99156816]
[1750587280722,165.54964886,132.88,132.83,26.34946924]
[1750587285826,146.9,132.88,132.83,63.99156816]
[1750587287248,146.9,132.88,132.83,67.74006815]
[1750587288936,146.9,132.88,132.86,1.5193]
[1750587289128,178.96,132.92,132.86,1.5193]
[1750587290420,146.9,132.92,132.86,1.5193]
[1750587290815,7.42,132.93,132.9,26.33559066]
[1750587291017,50.70964886,132.96,132.9,26.33559066]
[1750587294540,50.70964886,132.96,132.9,63.95786304]
[1750587294843,146.9,132.97,132.9,63.95786304]
[1750587296451,18.64964886,132.96,132.9,26.33559066]
[1750587296620,50.68964886,132.96,132.9,26.33559066]
[1750587297840,18.64964886,132.96,132.9,26.33559066]
[1750587298048,18.64964886,133.0,132.91,27.5967]
[1750587298223,146.9,133.01,132.94,26.32766661]
[1750587298726,146.9,133.01,132.95,6.0982]
[1750587299762,48.8,133.1,132.99,6.3889]
[1750587299930,48.8,133.1,133.03,1.6064]
[1750587300129,39.38,133.11,133.04,26.30787733]
[1750587300338,65.38,133.11,133.04,26.30787733]
[1750587301529,39.38,133.11,133.04,63.89055923]
[1750587301828,157.13371472,133.15,133.05,6.3889]
[1750587302036,157.13371472,133.15,133.05,32.3889]
[1750587302355,10.23371472,133.15,133.06,26.30392303]
[1750587302670,18.64964886,133.14,133.06,63.88095594]
[1750587304054,10.23371472,133.15,133.06,101.45798885]
[1750587304226,10.23371472,133.15,133.1,63.86175806]
[1750587304425,10.23371472,133.15,133.11,1.6064]
[1750587306153,10.23371472,133.15,133.12,6.6001]
[1750587306473,7.36,133.21,133.13,45.0687298]
[1750587306642,7.36,133.21,133.13,26.29009238]
[1750587306950,7.36,133.21,133.11,1.6064]
[1750587306951,44.64964886,133.17,133.11,7.51258357]
[1750587307126,76.62964886,133.17,133.11,7.51258357]
[1750587307631,76.62964886,133.17,133.11,26.29404251]
[1750587308036,44.64964886,133.17,133.11,26.29404251]
[1750587308362,44.64964886,133.17,133.11,18.78145894]
[1750587309351,18.64964886,133.17,133.11,18.78145894]
[1750587310031,18.64964886,133.17,133.1,7.513148]
[1750587310449,18.64964886,133.17,133.1,26.29601802]
[1750587311550,18.64964886,133.14,133.1,7.513148]
[1750587312761,173.06064822,133.14,133.08,7.51427712]
[1750587313366,18.64964886,133.1,133.08,7.51427712]
[1750587313574,18.64964886,133.1,133.04,1.6035]